{"text_format":"3","workbook":"xlsx","n_sheets":1,"sheets":["资金"],"read":"whole","date_system":"1900"}

{"sheet":"资金","index":0,"n_rows":18,"n_cols":24,"rows_kept":18,"merged":[[0,0,0,23],[1,0,1,23],[2,0,3,0],[2,1,3,1],[2,2,3,2],[2,3,3,3],[2,4,2,22],[2,23,3,23],[5,0,6,0],[5,1,6,1],[5,3,6,3],[7,0,10,0],[7,1,10,1],[7,3,10,3],[17,1,17,2]]}
["河源市2023年省促进经济高质量发展专项资金（市场监督管理—知识产权创造、运用和保护) 明细分配表"]
["单位：万元"]
["序号","专项名称","任务要求目标","合计","资金分配方案",{"$nulls":18},"备注"]
[{"$nulls":4},"市市场监督管理局","江东新区分局","高新区分局","源城区市场监督管理局","东源县市场监督管理局","和平县市场监督管理局","龙川县市场监督管理局","紫金县市场监督管理局","连平县市场监督管理局","河源高新区知识产权协同运营中心","河源市众拓光电科技有限公司","广东星汇生物科技    有限公司","河源广工大协同创新研究院","广东权璟知识产权\n咨询管理有限公司","华研（广州）知识产权运营服务有限公司","广州中新知识产权\n服务有限公司","河源市知识产权协会","横琴国际知识产权交易中心有限公司","河源市华标知识产权代理事务所（普通合伙）"]
[1,"区域知识产权管理能力提升","在已建设的重点园区知识产权协同运营中心推进知识产权创造、运用、保护集成服务，支撑区域打造知识产权全链条生态系统，建设区域知识产权发展高地。",50,{"$nulls":9},50]
[2,"知识产权高质量创造和创新主体能力提升","围绕广东省重点培育发展的战略性支柱产业集群、战略性新兴产业集群，从每个产业中选取关键、核心领域技术点，支持我省企业开展精准高价值专利培育布局，加快创新驱动发展。",80,{"$nulls":10},30,30]
[null,null,"支持各地推动企业贯彻实施知识产权管理规范，提升企业知识产权制度运用能力。",null,20,{"$nulls":18},"①9万元待分配，拟组织开展第二批政策兑现工作；②11万元拟用于对通过知识产权管理规范认证企业资助:精电（河源）显示技术有限公司,2万元；广东鑫达新材料科技有限公司,2万元；盛嘉伦橡塑（河源）有限公司,2万元；河源轩朗光电科技有限公司,2万元；广东埃纳生医学科技有限公司,3万元。"]
[3,"知识产权运用和商标、地理标志商标战略","推动专利转化工作，促进全国高校院所、国有企业与我省中小微企业对接，建设“高校院所+产业”专利供需平台，组织对接活动，开展专利开放许可促进工作，实现专利转化专项计划中5个绩效目标按期达标。",200,{"$nulls":12},30,30]
[null,null,"促进知识产权交易运营，培育和规范交易运营市场，培养专业人才，有条件地市可引入社会资本设立知识产权运营基金。持续推动知识产权质押融资提质扩容，开展知识产权质押融资助力重点企业纾困活动。积极推广知识产权保险。",null,20,10,10,10,10,10,10,10,10,{"$nulls":10},"其中市市场监督管理局20万元待分配，拟用于组织开展第二批政策兑现及持续推动知识产权质押融资提质扩容，开展知识产权质押融资助力重点企业纾困相关培训、宣传等活动。"]
[null,null,"开展商标品牌指导站建设，通过行政指导、普法宣传等各种方式，为辖区企业提供商标注册辅导、商标规范使用提示、商标维权援助、自主品牌培育、商标运用指引等服务。",null,null,10,null,10]
[null,null,"强化地理标志品牌运用推广，宣传展示地理标志运用促进成效，突出地理标志的社会效益、经济效益和生态效益。鼓励专利代理、商标代理等各类知识产权服务机构，拓展地理标志服务业务。推广地理标志助力乡村振兴经验模式，推动产业发展规模不断扩大，支持乡村产业发展。",{"$nulls":15},10,10]
[4,"知识产权公共服务及人才培养","支持地市开展中小学知识产权教育工作。",15,15,{"$nulls":18},"①3万元拟分配市市场监督管理局，在不少于3所中小学开展知识产权进校园活动；  ②12万元拟用于2022年度市级知识产权试点示范学校后补助:广东省连平县连平中学,1万元；龙川县田家炳中学,1万元；龙川县老隆镇第二小学,1万元；和平县下车镇中心小学(和平县下车镇香港深圳社团总会中心小学),3万元；连平县第一小学,3万元；龙川县实验小学,3万元。"]
[5,"知识产权纠纷多元化解决","开展知识产权纠纷多元化解工作，推动知识产权调解仲裁公证等工作，及时化解知识产权纠纷。",20,{"$nulls":16},20]
[6,"知识产权纠纷行政裁决效能提升","推动专利侵权纠纷行政裁决与市场监管综合行政执法融合，加强知识产权行政裁决队伍专业化、职业化建设，加大专利侵权纠纷行政裁决力度，提升行政裁决效能。",30,null,null,10,{"$nulls":4},10,10]
[7,"强化展会、专业市场、电商平台知识产权保护","完善重点展会知识产权保护机制，进驻重点展会开展知识产权保护工作；建立健全专业市场知识产权纠纷快速处理机制等保护工作机制，加强专业市场知识产权保护；健全电商领域知识产权保护工作机制，加强电商领域知识产权执法保护和纠纷处理，净化电商领域知识产权保护环境。",30,null,6,null,6,6,6,6]
[8,"内外贸一体化企业知识产权海外保护能力提升","支持广东省内外贸一体化企业完善知识产权国际合规管理制度，开展出口产品知识产权风险排查预警、加强海外知识产权布局以及海外维权等工作。",27,{"$nulls":17},27]
[9,"地理标志产品培育、地理标志专用标志使用","挖掘地理标志资源，培育地理标志产品；支持地理标志专用标志使用，扩大地理标志专用标志使用覆盖面。",20,{"$nulls":18},20]
[null,"合计",null,{"$f":"SUM(D5:D17)","v":472},{"$f":"SUM(E5:E17)","v":55},26,20,26,16,16,16,20,20,50,30,30,30,30,10,10,20,27,20]